lending/lending_fUSD_20241229
["ID","MTS","AMOUNT","RATE_DAILY","PERIOD"]
[347009574,1735465844000,-500.0,0.00012795,2]
[347009576,1735465844009,-500.0,0.00012795,2]
[347009578,1735465844018,-1327.33,0.00012795,2]
[347009580,1735465844027,-500.0,0.00012795,2]
[347009582,1735465844038,-500.0,0.00012795,2]
[347009584,1735465844047,-500.0,0.00012795,2]
[347009586,1735465844055,-500.0,0.00012795,2]
[347009588,1735465844064,-235.11570376,0.00012795,2]
[347009590,1735465844073,-500.0,0.00012795,2]
[347009592,1735465844084,-500.0,0.00012795,2]
[347009594,1735465844094,-500.0,0.00012795,2]
[347009596,1735465844104,-500.0,0.00012795,2]
[347009598,1735465844113,-500.0,0.00012795,2]
[347009600,1735465844123,-191.96194033,0.00012795,2]
[347009602,1735465844132,-500.0,0.00012795,2]
[347009604,1735465844141,-500.0,0.00012795,2]
[347009606,1735465844150,-500.0,0.00012795,2]
[347009608,1735465844159,-500.0,0.00012795,2]
[347009610,1735465844169,-500.0,0.00012795,2]
[347009612,1735465844179,-500.0,0.00012795,2]
[347009614,1735465844188,-500.0,0.00012795,2]
[347009616,1735465844199,-500.0,0.00012795,2]
[347009618,1735465844209,-1430.85,0.00012795,2]
[347009620,1735465844218,-500.0,0.00012795,2]
[347009622,1735465844228,-500.0,0.00012795,2]
[347009624,1735465844237,-500.0,0.00012795,2]
[347009626,1735465844246,-500.0,0.00012795,2]
[347009628,1735465844255,-500.0,0.00012795,2]
[347009629,1735465844264,-500.0,0.00012795,2]
[347009632,1735465844274,-500.0,0.00012795,2]
[347009633,1735465844283,-500.0,0.00012795,2]
[347009635,1735465844292,-502.37729575,0.00012795,2]
[347009637,1735465844302,-574.24521966,0.00012795,2]
[347009639,1735465844312,-500.0,0.00012795,2]
[347009641,1735465844321,-686.73,0.00012795,2]
[347009643,1735465844330,-500.0,0.00012795,2]
[347009645,1735465844339,-500.0,0.00012795,2]
[347009647,1735465844349,-500.0,0.00012795,2]
[347009649,1735465844358,-500.0,0.00012795,2]
[347009651,1735465844367,-500.0,0.00012795,2]
[347009653,1735465844376,-500.0,0.00012795,2]
[347009655,1735465844385,-500.0,0.00012795,2]
[347009657,1735465844394,-500.0,0.00012795,2]
[347009659,1735465844403,-500.0,0.00012795,2]
[347009661,1735465844413,-500.0,0.00012795,2]
[347009663,1735465844422,-500.0,0.00012795,2]
[347009665,1735465844431,-151.0,0.00012795,2]
[347009667,1735465844440,-192.116634,0.00012795,2]
[347009669,1735465844450,-500.0,0.00012795,2]
[347009671,1735465844458,-500.0,0.00012795,2]
[347009673,1735465844467,-500.0,0.00012795,2]
[347009675,1735465844476,-500.0,0.00012795,2]
[347009677,1735465844485,-500.0,0.00012795,2]
[347009679,1735465844499,-500.0,0.00012795,2]
[347009681,1735465844508,-500.0,0.00012795,2]
[347009683,1735465844517,-500.0,0.00012795,2]
[347009685,1735465844525,-500.0,0.00012795,2]
[347009687,1735465844535,-390.87736506,0.00012795,2]
[347009689,1735465844544,-151.0,0.00012795,2]
[347009691,1735465844553,-500.0,0.00012795,2]
[347009693,1735465844562,-500.0,0.00012795,2]
[347009695,1735465844572,-151.0,0.00012795,2]
[347009697,1735465844584,-151.0,0.00012795,2]
[347009699,1735465844593,-151.0,0.00012795,2]
[347009701,1735465844602,-151.0,0.00012795,2]
[347009703,1735465844611,-500.0,0.00012795,2]
[347009705,1735465844620,-500.0,0.00012795,2]
[347009707,1735465844629,-151.0,0.00012795,2]
[347009709,1735465844638,-151.0,0.00012795,2]
[347009711,1735465844647,-151.0,0.00012795,2]
[347009713,1735465844656,-151.0,0.00012795,2]
[347009715,1735465844665,-500.0,0.00012795,2]
[347009717,1735465844674,-252.18524,0.00012795,2]
[347009719,1735465844683,-500.0,0.00012795,2]
[347009721,1735465844693,-500.0,0.00012795,2]
[347009723,1735465844702,-500.0,0.00012795,2]
[347009725,1735465844711,-151.0,0.00012795,2]
[347009727,1735465844720,-500.0,0.00012795,2]
[347009729,1735465844729,-151.0,0.00012795,2]
[347009731,1735465844738,-500.0,0.00012795,2]
[347009732,1735465844747,-154.202998,0.00012795,2]
[347009734,1735465844756,-500.0,0.00012795,2]
[347009736,1735465844765,-579.9,0.00012795,2]
[347009739,1735465844775,-500.0,0.00012795,2]
[347009740,1735465844783,-151.0,0.00012795,2]
[347009742,1735465844792,-151.0,0.00012795,2]
[347009744,1735465844801,-500.0,0.00012795,2]
[347009747,1735465844811,-158.89793289,0.00012795,2]
[347009750,1735465844831,-341.10206711,0.00012795,2]
[347009752,1735465844841,-500.0,0.00012795,2]
[347009754,1735465844850,-500.0,0.00012795,2]
[347009756,1735465844859,-2821.61,0.00012795,2]
[347009758,1735465844868,-500.0,0.00012795,2]
[347009760,1735465844877,-500.0,0.00012795,2]
[347009762,1735465844886,-500.0,0.00012795,2]
[347009764,1735465844895,-151.0,0.00012795,2]
[347009766,1735465844904,-151.0,0.00012795,2]
[347009768,1735465844914,-500.0,0.00012795,2]
[347009770,1735465844923,-151.0,0.00012795,2]
[347009772,1735465844932,-151.0,0.00012795,2]
[347009774,1735465844941,-151.0,0.00012795,2]
[347009776,1735465844950,-500.0,0.00012795,2]
[347009778,1735465844959,-151.0,0.00012795,2]
[347009780,1735465844968,-500.0,0.00012795,2]
[347009782,1735465844977,-151.0,0.00012795,2]
[347009783,1735465844986,-151.0,0.00012795,2]
[347009785,1735465844995,-151.0,0.00012795,2]
[347009787,1735465845004,-500.0,0.00012795,2]
[347009789,1735465845013,-151.0,0.00012795,2]
[347009791,1735465845022,-500.0,0.00012795,2]
[347009793,1735465845031,-151.0,0.00012795,2]
[347009795,1735465845040,-151.0,0.00012795,2]
[347009797,1735465845050,-151.0,0.00012795,2]
[347009799,1735465845059,-500.0,0.00012795,2]
[347009801,1735465845068,-151.0,0.00012795,2]
[347009803,1735465845077,-151.0,0.00012795,2]
[347009805,1735465845087,-283.5079,0.00012795,2]
[347009806,1735465845097,-500.0,0.00012795,2]
[347009807,1735465845107,-333.75126756,0.00012795,2]
[347009808,1735465845116,-38.64828742,0.00012795,2]
[347009809,1735465845128,-461.35171258,0.00012795,2]
[347009810,1735465845137,-500.0,0.00012795,2]
[347009811,1735465845147,-500.0,0.00012795,2]
[347009812,1735465845157,-500.0,0.00012795,2]
[347009813,1735465845166,-151.0,0.00012795,2]
[347009814,1735465845175,-151.0,0.00012795,2]
[347009816,1735465845185,-151.0,0.00012795,2]
[347009818,1735465845194,-500.0,0.00012795,2]
[347009820,1735465845203,-151.0,0.00012795,2]
[347009822,1735465845212,-151.0,0.00012795,2]
[347009823,1735465845221,-500.0,0.00012795,2]
[347009826,1735465845231,-151.0,0.00012795,2]
[347009827,1735465845240,-54.29148742,0.00012795,2]
[347009830,1735465845252,-96.70851258,0.00012795,2]
[347009832,1735465845261,-151.0,0.00012795,2]
[347009834,1735465845270,-55.00805948,0.00012795,2]
[347009836,1735465845282,-444.99194052,0.00012795,2]
[347009838,1735465845291,-88.70737748,0.00012795,2]
[347009840,1735465845302,-208.21537352,0.00012795,2]
[347009842,1735465845311,-151.0,0.00012795,2]
[347009844,1735465845320,-59.37562291,0.00012795,2]
[347009846,1735465845332,-91.62437709,0.00012795,2]
[347009848,1735465845341,-206.20429473,0.00012795,2]
[347009850,1735465845353,-293.79570527,0.00012795,2]
[347009852,1735465845362,-151.0,0.00012795,2]
[347009854,1735465845371,-151.0,0.00012795,2]
[347009856,1735465845380,-425.29929473,0.00012795,2]
[347009859,1735465845392,-483.21795857,0.00012795,2]
[347009874,1735465845535,-452.45572213,0.00012795,2]
[347009877,1735465845552,-291.528,0.00012795,2]
[347009882,1735465845590,-61.80902457,0.00012795,2]
[347009884,1735465845601,-251.40597556,0.00012795,2]
[347009886,1735465845613,-248.59402444,0.00012795,2]
[347009888,1735465845622,-151.0,0.00012795,2]
[347009890,1735465845632,-151.0,0.00012795,2]
[347009892,1735465845641,-500.0,0.00012795,2]
[347009894,1735465845651,-151.0,0.00012795,2]
[347009896,1735465845660,-230.350268,0.00012795,2]
[347009898,1735465845669,-500.0,0.00012795,2]
[347009900,1735465845679,-346.62026141,0.00012795,2]
[347009902,1735465845690,-153.37973859,0.00012795,2]
[347009904,1735465845700,-500.0,0.00012795,2]
[347009906,1735465845711,-500.0,0.00012795,2]
[347009908,1735465845720,-500.0,0.00012795,2]
[347009910,1735465845729,-500.0,0.00012795,2]
[347009912,1735465845739,-500.0,0.00012795,2]
[347009914,1735465845748,-151.0,0.00012795,2]
[347009916,1735465845757,-151.0,0.00012795,2]
[347009918,1735465845766,-221.863357,0.00012795,2]
[347009920,1735465845775,-500.0,0.00012795,2]
[347009922,1735465845784,-27.49600403,0.00012795,2]
[347009925,1735465845796,-472.50399597,0.00012795,2]
[347009927,1735465845806,-290.33600403,0.00012795,2]
[347009929,1735465845818,-209.66399597,0.00012795,2]
[347009931,1735465845827,-500.0,0.00012795,2]
[347009933,1735465845837,-150.09301303,0.00012795,2]
[347009935,1735465845849,-130.71967,0.00012795,2]
[347009937,1735465845859,-491.96033,0.00012795,2]
[347009996,1735465846336,-8.03967,0.00012795,2]
[347009998,1735465846346,-394.56033,0.00012795,2]
[347010008,1735465846435,-105.43967,0.00012795,2]
[347010010,1735465846445,-390.79451012,0.00012795,2]
[347010013,1735465846464,-109.20548988,0.00012795,2]
[347010015,1735465846474,-157.97508912,0.00012795,2]
[347010018,1735465846489,-342.02491088,0.00012795,2]
[347010020,1735465846499,-151.0,0.00012795,2]
[347010022,1735465846510,-151.0,0.00012795,2]
[347010024,1735465846519,-2553.52022013,0.00012795,2]
[347010026,1735465846535,-276.29565446,0.00012795,2]
[347010030,1735465846557,-2406.84412541,0.00012795,2]
[347010032,1735465846567,-151.0,0.00012795,2]
[347010034,1735465846575,-500.0,0.00012795,2]
[347010036,1735465846585,-500.0,0.00012795,2]
[347010038,1735465846594,-500.0,0.00012795,2]
[347010040,1735465846602,-500.0,0.00012795,2]
[347010042,1735465846612,-500.0,0.00012795,2]
[347010044,1735465846621,-500.0,0.00012795,2]
[347010045,1735465846630,-500.0,0.00012795,2]
[347010048,1735465846640,-500.0,0.00012795,2]
[347010050,1735465846649,-500.0,0.00012795,2]
[347010052,1735465846658,-500.0,0.00012795,2]
[347010054,1735465846667,-206.15758269,0.00012795,2]
[347010056,1735465846679,-293.84241731,0.00012795,2]
[347010058,1735465846688,-500.0,0.00012795,2]
[347010060,1735465846698,-500.0,0.00012795,2]
[347010062,1735465846707,-500.0,0.00012795,2]
[347010064,1735465846716,-500.0,0.00012795,2]
[347010066,1735465846725,-500.0,0.00012795,2]
[347010068,1735465846734,-150.0,0.00012795,2]
[347010070,1735465846744,-500.0,0.00012795,2]
[347010072,1735465846753,-1915.11578536,0.00012795,2]
[347010074,1735465846764,-1660.0,0.00012795,2]
[347010077,1735465846789,-1526.45421464,0.00012795,2]
[347010079,1735465846799,-500.0,0.00012795,2]
[347010081,1735465846808,-500.0,0.00012795,2]
[347010083,1735465846817,-500.0,0.00012795,2]
[347010085,1735465846826,-500.0,0.00012795,2]
[347010087,1735465846835,-151.0,0.00012795,2]
[347010089,1735465846845,-500.0,0.00012795,2]
[347010091,1735465846854,-500.0,0.00012795,2]
[347010093,1735465846863,-603.43246518,0.00012795,2]
[347010095,1735465846872,-500.0,0.00012795,2]
[347010097,1735465846882,-500.0,0.00012795,2]
[347010099,1735465846891,-500.0,0.00012795,2]
[347010100,1735465846900,-500.0,0.00012795,2]
[347010101,1735465846909,-500.0,0.00012795,2]
[347010102,1735465846918,-500.0,0.00012795,2]
[347010103,1735465846927,-500.0,0.00012795,2]
[347010104,1735465846936,-500.0,0.00012795,2]
[347010105,1735465846945,-500.0,0.00012795,2]
[347010106,1735465846954,-2020.99,0.00012795,2]
[347010107,1735465846962,-504.63959473,0.00012795,2]
[347010109,1735465846972,-500.0,0.00012795,2]
[347010111,1735465846981,-500.0,0.00012795,2]
[347010113,1735465846989,-211.22223254,0.00012795,2]
[347010148,1735465847310,-288.77776746,0.00012795,2]
[347010150,1735465847320,-500.0,0.00012795,2]
[347010152,1735465847330,-500.0,0.00012795,2]
[347010154,1735465847340,-500.0,0.00012795,2]
[347010156,1735465847349,-34.72466706,0.00012795,2]
[347010158,1735465847362,-465.27533294,0.00012795,2]
[347010160,1735465847371,-500.0,0.00012795,2]
[347010162,1735465847380,-151.0,0.00012795,2]
[347010164,1735465847389,-151.0,0.00012795,2]
[347010166,1735465847399,-151.0,0.00012795,2]
[347010168,1735465847409,-151.0,0.00012795,2]
[347010170,1735465847418,-151.0,0.00012795,2]
[347010172,1735465847428,-500.0,0.00012795,2]
[347010174,1735465847437,-151.0,0.00012795,2]
[347010176,1735465847447,-151.0,0.00012795,2]
[347010178,1735465847457,-151.0,0.00012795,2]
[347010180,1735465847466,-151.0,0.00012795,2]
[347010182,1735465847475,-500.0,0.00012795,2]
[347010184,1735465847485,-278.284906,0.00012795,2]
[347010186,1735465847495,-500.0,0.00012795,2]
[347010188,1735465847505,-500.0,0.00012795,2]
[347010190,1735465847519,-500.0,0.00012795,2]
[347010192,1735465847528,-151.0,0.00012795,2]
[347010194,1735465847537,-151.0,0.00012795,2]
[347010196,1735465847547,-262.550694,0.00012795,2]
[347010198,1735465847557,-500.0,0.00012795,2]
[347010200,1735465847567,-500.0,0.00012795,2]
[347010202,1735465847576,-500.0,0.00012795,2]
[347010204,1735465847590,-500.0,0.00012795,2]
[347010206,1735465847600,-1450.85,0.00012795,2]
[347010208,1735465847609,-500.0,0.00012795,2]
[347010210,1735465847619,-500.0,0.00012795,2]
[347010212,1735465847628,-500.0,0.00012795,2]
[347010214,1735465847638,-500.0,0.00012795,2]
[347010216,1735465847647,-500.0,0.00012795,2]
[347010218,1735465847657,-500.0,0.00012795,2]
[347010220,1735465847666,-151.0,0.00012795,2]
[347010222,1735465847676,-151.0,0.00012795,2]
[347010224,1735465847685,-151.0,0.00012795,2]
[347010226,1735465847695,-151.0,0.00012795,2]
[347010228,1735465847704,-500.0,0.00012795,2]
[347010230,1735465847714,-190.748812,0.00012795,2]
[347010232,1735465847723,-500.0,0.00012795,2]
[347010234,1735465847732,-500.0,0.00012795,2]
[347010236,1735465847741,-500.0,0.00012795,2]
[347010238,1735465847751,-500.0,0.00012795,2]
[347010239,1735465847760,-500.0,0.00012795,2]
[347010241,1735465847769,-500.0,0.00012795,2]
[347010243,1735465847779,-231.474847,0.00012795,2]
[347010255,1735465847907,-231.474847,0.00012795,2]
[347010257,1735465847940,-231.474847,0.00012795,2]
[347010259,1735465847950,-231.474847,0.00012795,2]
[347010261,1735465847960,-231.474847,0.00012795,2]
[347010262,1735465847969,-231.474847,0.00012795,2]
[347010264,1735465847979,-231.474847,0.00012795,2]
[347010266,1735465847988,-500.0,0.00012795,2]
[347010268,1735465847997,-231.474847,0.00012795,2]
[347010270,1735465848006,-231.474847,0.00012795,2]
[347010271,1735465848015,-231.474847,0.00012795,2]
[347010273,1735465848025,-231.474847,0.00012795,2]
[347010275,1735465848034,-231.474847,0.00012795,2]
[347010277,1735465848043,-231.474847,0.00012795,2]
[347010278,1735465848053,-231.474851,0.00012795,2]
[347010280,1735465848062,-500.0,0.00012795,2]
[347010282,1735465848072,-601.90768899,0.00012795,2]
[347010283,1735465848082,-500.0,0.00012795,2]
[347010285,1735465848091,-500.0,0.00012795,2]
[347010287,1735465848100,-582.95836412,0.00012795,2]
[347010288,1735465848109,-500.0,0.00012795,2]
[347010290,1735465848118,-5540.11,0.00012795,2]
[347010292,1735465848128,-500.0,0.00012795,2]
[347010294,1735465848137,-500.0,0.00012795,2]
[347010296,1735465848146,-500.0,0.00012795,2]
[347010297,1735465848156,-500.0,0.00012795,2]
[347010299,1735465848165,-151.0,0.00012795,2]
[347010301,1735465848174,-151.0,0.00012795,2]
[347010302,1735465848184,-500.0,0.00012795,2]
[347010304,1735465848193,-500.0,0.00012795,2]
[347010306,1735465848202,-436.739062,0.00012795,2]
[347010308,1735465848212,-436.739062,0.00012795,2]
[347010310,1735465848222,-500.0,0.00012795,2]
[347010312,1735465848232,-436.739062,0.00012795,2]
[347010313,1735465848241,-436.739062,0.00012795,2]
[347010315,1735465848251,-436.739062,0.00012795,2]
[347010317,1735465848263,-436.739062,0.00012795,2]
[347010319,1735465848272,-436.739062,0.00012795,2]
[347010321,1735465848282,-436.739062,0.00012795,2]
[347010323,1735465848291,-436.739062,0.00012795,2]
[347010324,1735465848300,-436.739062,0.00012795,2]
[347010326,1735465848309,-436.739062,0.00012795,2]
[347010328,1735465848319,-436.739072,0.00012795,2]
[347010330,1735465848327,-500.0,0.00012795,2]
[347010332,1735465848338,-500.0,0.00012795,2]
[347010333,1735465848347,-500.0,0.00012795,2]
[347010335,1735465848356,-368.91,0.00012795,2]
[347010337,1735465848366,-373.44,0.00012795,2]
[347010339,1735465848376,-500.0,0.00012796,2]
[347010341,1735465848386,-151.0,0.00012796,2]
[347010343,1735465848395,-151.0,0.00012796,2]
[347010344,1735465848404,-151.0,0.00012796,2]
[347010346,1735465848413,-151.0,0.00012796,2]
[347010348,1735465848422,-151.0,0.00012796,2]
[347010350,1735465848431,-151.0,0.00012796,2]
[347010351,1735465848440,-151.0,0.00012796,2]
[347010353,1735465848450,-151.0,0.00012796,2]
[347010355,1735465848459,-151.0,0.00012796,2]
[347010357,1735465848469,-151.0,0.00012796,2]
[347010359,1735465848479,-500.0,0.00012796,2]
[347010361,1735465848488,-151.0,0.00012796,2]
[347010362,1735465848497,-151.0,0.00012796,2]
[347010364,1735465848507,-151.377293,0.00012796,2]
[347010366,1735465848518,-163.985732,0.00012796,2]
[347010368,1735465848528,-151.0,0.00012796,2]
[347010370,1735465848537,-151.0,0.00012796,2]
[347010371,1735465848546,-151.0,0.00012796,2]
[347010373,1735465848555,-151.0,0.00012796,2]
[347010375,1735465848566,-500.0,0.00012796,2]
[347010377,1735465848576,-500.0,0.00012796,2]
[347010379,1735465848586,-151.0,0.00012796,2]
[347010381,1735465848597,-257.346946,0.00012796,2]
[347010382,1735465848607,-500.0,0.00012796,2]
[347010384,1735465848617,-151.0,0.00012796,2]
[347010386,1735465848627,-151.0,0.00012796,2]
[347010388,1735465848637,-151.0,0.00012796,2]
[347010390,1735465848647,-1011.09,0.00012796,2]
[347010392,1735465848656,-500.0,0.00012796,2]
[347010394,1735465848666,-859.26,0.00012796,2]
[347010396,1735465848675,-194.4065901,0.00012796,2]
[347010399,1735465848688,-601.8134099,0.00012796,2]
[347010401,1735465848697,-574.44778047,0.00012796,2]
[347010403,1735465848712,-1035.82221953,0.00012796,2]
[347010405,1735465848721,-151.0,0.00012796,2]
[347010407,1735465848730,-2026.12115829,0.00012796,2]
[347010408,1735465848802,-353.60921171,0.00012796,2]
[347010409,1735465848812,-898.71,0.00012796,2]
[347010410,1735465848821,-3023.71,0.00012796,2]
[347010411,1735465848830,-896.01,0.00012796,2]
[347010412,1735465848840,-1448.47,0.00012796,2]
[347010413,1735465848850,-500.0,0.00012796,2]
[347010415,1735465848859,-595.17,0.00012796,2]
[347010417,1735465848868,-757.6,0.00012796,2]
[347010419,1735465848877,-423.57263741,0.00012796,2]
[347010425,1735465848924,-1226.25736259,0.00012796,2]
[347010427,1735465848934,-706.17,0.00012796,2]
[347010429,1735465848943,-163.91407862,0.00012797,2]
[347010431,1735465848954,-336.08592138,0.00012797,2]
[347010433,1735465848964,-151.0,0.00012797,2]
[347010435,1735465848974,-151.0,0.00012797,2]
[347010437,1735465848983,-153.00692,0.00012797,2]
[347010439,1735465848992,-151.0,0.00012797,2]
[347010441,1735465849001,-151.0,0.00012797,2]
[347010443,1735465849010,-46.08434732,0.00012797,2]
[347010451,1735465849079,-324.4,0.00012797,2]
[347010834,1735465853050,-903.4,0.00013069,7]
[347010836,1735465853084,-6.92027516,0.00013123,10]
[347010837,1735465853110,-2000.0,0.00013123,10]
[347010838,1735465853131,-2000.0,0.00013123,10]
[347010839,1735465853153,-2000.0,0.00013123,10]
[347010840,1735465853174,-2000.0,0.00013123,10]
[347010841,1735465853196,-2000.0,0.00013123,10]
[347010842,1735465853216,-2000.0,0.00013123,10]
[347010843,1735465853237,-2000.0,0.00013123,10]
[347010844,1735465962380,-703.66,0.00016658,30]
[347010845,1735465962449,-3248.50352,0.00018,30]
[347010846,1735465962472,-517.42633798,0.00018,60]
[347010847,1735465977723,500.0,0.00024709,120]
[347010849,1735466247493,383.122919,0.00023,120]
[347010854,1735466448526,380.29,9.842e-05,2]
[347010856,1735466620156,668.47,0.00016658,30]
[347010857,1735466636552,3220.22367516,0.00024724,120]
[347010884,1735466924259,238.37,0.00010137,2]
[347010934,1735467032365,-644.666761,0.00011487,2]
[347010935,1735467032431,-855.333239,0.00011487,2]
[347010936,1735467032440,-250.0,0.00011504,2]
[347010937,1735467032450,-610.72,0.00011573,2]
[347010938,1735467032459,-1870.79,0.00011623,2]
[347010939,1735467032468,-1000.0,0.00011654,2]
[347010940,1735467032479,-375.35,0.00011654,2]
[347010941,1735467032490,-94.53801621,0.00011708,2]
[347010942,1735467032594,-105.46198379,0.00011708,2]
[347010943,1735467032603,-819.91,0.00011736,2]
[347010944,1735467032612,-1441.91323898,0.00011797,2]
[347010945,1735467032623,-1039.7999999,0.00011797,2]
[347010946,1735467032634,-566.89501676,0.00011797,2]
[347010947,1735467032644,-3358.8,0.00011797,2]
[347010948,1735467032656,-1059.9999925,0.00011797,2]
[347010949,1735467032667,-1125.65000025,0.00011797,2]
[347010950,1735467032678,-450.1191911,0.00011797,2]
[347010951,1735467032689,-1107.64615845,0.00011797,2]
[347010952,1735467032778,-13749.17640206,0.00011797,2]
[347010953,1735467032787,-167.23,0.00011803,2]
[347010954,1735467032796,-250.0,0.00011827,2]
[347010955,1735467032805,-252.80594002,0.00012,2]
[347010956,1735467032814,-380.29,0.00012106,2]
[347010957,1735467032823,-268.228,0.0001216,2]
[347010958,1735467032832,-1351.801,0.0001225,2]
[347010960,1735467032841,-5771.25241499,0.0001225,2]
[347010986,1735467038479,-521.74533198,0.0001225,2]
[347010987,1735467038491,-892.2462057,0.0001225,2]
[347010988,1735467038502,-1972.34,0.0001225,2]
[347010989,1735467038513,-699.54,0.0001225,2]
[347010990,1735467038524,-4142.87604733,0.0001225,2]
[347010991,1735467038533,-984.98,0.00012357,2]
[347010992,1735467038543,-151.5,0.00012357,2]
[347010994,1735467038552,-436.57,0.00012357,2]
[347010995,1735467038561,-91642.04234742,0.000124,2]
[347010998,1735467038572,-500.0,0.00012473,2]
[347011000,1735467038585,-500.0,0.00012473,2]
[347011003,1735467038599,-4568.45734003,0.00012498,2]
[347011005,1735467038611,-1741.02,0.00012498,2]
[347011007,1735467038625,-500.0,0.00012498,2]
[347011010,1735467038638,-1364.81,0.00012498,2]
[347011012,1735467038652,-4020.86,0.00012498,2]
[347011015,1735467038667,-575.62,0.00012498,2]
[347011017,1735467038679,-6835.59,0.00012498,2]
[347011019,1735467038691,-1007.97,0.00012498,2]
[347011021,1735467038702,-2666.91,0.00012498,2]
[347011024,1735467038715,-6221.86,0.00012498,2]
[347011026,1735467038727,-1833.69,0.00012498,2]
[347011029,1735467038741,-4428.76,0.00012498,2]
[347011031,1735467038755,-2170.04,0.00012498,2]
[347011034,1735467038768,-509.38,0.00012498,2]
[347011036,1735467038782,-500.0,0.00012498,2]
[347011039,1735467038796,-569.35,0.00012498,2]
[347011041,1735467038809,-1691.56,0.00012498,2]
[347011043,1735467038821,-189.9021536,0.00012498,2]
[347011046,1735467038835,-1147.25,0.00012498,2]
[347011048,1735467038850,-500.0,0.00012498,2]
[347011051,1735467038862,-500.0,0.00012499,2]
[347011053,1735467038874,-431.77653688,0.00012499,2]
[347011055,1735467038885,-500.0,0.00012499,2]
[347011058,1735467038899,-500.0,0.00012499,2]
[347011060,1735467038913,-500.0,0.00012499,2]
[347011062,1735467038923,-645.3,0.00012499,2]
[347011065,1735467038934,-500.0,0.00012499,2]
[347011067,1735467038949,-549.83,0.00012499,2]
[347011069,1735467038963,-500.0,0.00012499,2]
[347011072,1735467038974,-500.0,0.00012499,2]
[347011074,1735467038985,-500.0,0.00012499,2]
[347011076,1735467039000,-500.0,0.00012499,2]
[347011079,1735467039012,-500.0,0.00012499,2]
[347011080,1735467039024,-1085.72,0.00012499,2]
[347011081,1735467039036,-500.0,0.00012499,2]
[347011082,1735467039047,-500.0,0.00012499,2]
[347011083,1735467039058,-500.0,0.00012499,2]
[347011084,1735467039070,-584.21,0.00012499,2]
[347011085,1735467039082,-500.0,0.00012499,2]
[347011086,1735467039094,-500.0,0.00012499,2]
[347011087,1735467039107,-500.0,0.00012499,2]
[347011088,1735467039119,-500.0,0.00012499,2]
[347011089,1735467039132,-500.0,0.00012499,2]
[347011090,1735467039144,-500.0,0.00012499,2]
[347011091,1735467039157,-500.0,0.00012499,2]
[347011092,1735467039169,-500.0,0.00012499,2]
[347011093,1735467039182,-500.0,0.00012499,2]
[347011094,1735467039194,-500.0,0.00012499,2]
[347011095,1735467039206,-500.0,0.00012499,2]
[347011096,1735467039218,-807.43,0.00012499,2]
[347011097,1735467039230,-500.0,0.00012499,2]
[347011098,1735467039243,-500.0,0.00012499,2]
[347011099,1735467039255,-500.0,0.00012499,2]
[347011100,1735467039268,-500.0,0.00012499,2]
[347011101,1735467039281,-500.0,0.00012499,2]
[347011102,1735467039293,-500.0,0.00012499,2]
[347011103,1735467039305,-620.31,0.00012499,2]